Cogmind - Beta 14 @@@ ROGUE MODE // 2024.08.08 @ 19:27:06 Player: Kyzrati Result: Destroyed by F2-3NL(j) with Overtuned Pulse Rifle Performance ------------- Evolutions (0) 0 Regions Visited (5) 1000 Robots Destroyed (42) 210 Value Destroyed (658) 658 Prototype IDs (11) 220 Alien Tech Used (0) 0 Bonus (0) 0 TOTAL SCORE: 2088 Bonus ------- None Cogmind --------- Core Integrity 0/250 Matter 263/300 Energy 100/100 System Corruption 1% Temperature Warm (105) Movement Treading (250) Ox1 Location -7/Scraptown Parts ------- > --- POWER (1) -------- (None) > --- PROPULSION (2) --- Light Treads Spiked Treads > --- UTILITY (2) ------ High-capacity Storage Unit Improved Light Armor Plating > --- WEAPON (2) ------- High-powered Shotgun Heavy Flak Cannon > --- INVENTORY (20) --- Meta Core Large Storage Unit High-capacity Matter Pod (200) Machine Analyzer Seismic Detector Advanced Melee Analysis Suite Microactuators Force Booster Reaction Control System Hardened Light Armor Plating Trap Extractor (0/4) Drone Bay (2/2) Plasma Rifle Minigun Slug Cannon Improved Proton Missile Launcher Improved Grenade Launcher Plasma Cutter Power Maul Peak State ------------ > --- POWER ------------ Ion Engine > --- PROPULSION ------- Spiked Treads Advanced Treads > --- UTILITY ---------- High-capacity Storage Unit Improved Light Armor Plating > --- WEAPON ----------- High-powered Shotgun Heavy Flak Cannon > --- INVENTORY -------- Meta Core Light Treads Improved Titanium Leg Large Storage Unit High-capacity Matter Pod Machine Analyzer Improved Terrain Scanner Seismic Detector Advanced Melee Analysis Suite Microactuators Hardened Light Armor Plating Drone Bay Plasma Rifle Thermic Laser Minigun Heavy Battle Rifle Grenade Launcher Improved Grenade Launcher Plasma Cutter Power Maul [Rating: 25] Favorites ----------- Power Ion Engine Engine Ion Engine Propulsion Light Treads Treads Light Treads Utility Large Storage Unit Device Improved Terrain Scanner Storage Large Storage Unit Protection Insulated Plating Weapon Small Laser Energy Gun Small Laser Ballistic Gun High-powered Shotgun Ballistic Cannon Heavy Flak Cannon Launcher Improved Grenade Launcher Special Weapon Mining Laser Impact Weapon Makeshift Hammer Build | -11 -10 -10 -10 -7 -7 ------- Run | Yrd Mat Min Sub Rec Scr Slots Evolved . | . . . . . . Power . | . . . . . . Propulsion . | . . . . . . Utility . | . . . . . . Weapon . | . . . . . . Parts Attached 40 | 9 12 5 8 3 3 Power 4 | 2 1 . . 1 . Engine 4 | 2 1 . . 1 . Core . | . . . . . . Reactor . | . . . . . . Propulsion 6 | 2 1 1 1 . 1 Treads 6 | 2 1 1 1 . 1 Leg . | . . . . . . Wheel . | . . . . . . Hover . | . . . . . . Flight . | . . . . . . Utility 13 | 2 8 1 . 1 1 Device 7 | 1 6 . . . . Storage 3 | 1 1 . . . 1 Processor . | . . . . . . Hackware . | . . . . . . Protection 3 | . 1 1 . 1 . Artifact . | . . . . . . Weapon 17 | 3 2 3 7 1 1 Energy Gun 4 | 3 1 . . . . Energy Cannon . | . . . . . . Ballistic Gun 6 | . . 2 3 1 . Ballistic Cannon 1 | . . . . . 1 Launcher 1 | . . 1 . . . Special Weapon 2 | . 1 . 1 . . Impact Weapon 3 | . . . 3 . . Slashing Weapon . | . . . . . . Piercing Weapon . | . . . . . . Special Melee Weapon . | . . . . . . Unidentified Prototypes . | . . . . . . Parts Lost 2 | . . . . . 2 Power 1 | . . . . . 1 Propulsion 1 | . . . . . 1 Utility . | . . . . . . Weapon . | . . . . . . Highest Loss Streak 2 | . . . . . 2 To Critical Strikes . | . . . . . . Average Slot Usage (%) 99 | . 100 99 100 100 100 Engine 14 | . 14 14 14 14 14 Treads 27 | . 28 27 28 28 28 Device 2 | . 11 . . . . Storage 14 | . 14 14 14 14 14 Protection 11 | . 2 14 14 14 14 Energy Gun 8 | . 26 7 . . . Ballistic Gun 15 | . . 20 23 19 20 Ballistic Cannon 1 | . . . . . 7 Impact Weapon 1 | . . . 4 8 . Peak Build Rating 25 | 9 10 18 21 22 25 Average Rating 16 | 6 9 15 19 21 23 On Entrance 12 | . 9 8 18 21 21 Naked Turns . | . . . . . . Heaviest Build 59 | 13 28 37 35 35 59 Greatest Support 42 | 40 40 42 42 42 42 Greatest Overweight (x) 3 | 3 . . . . 1 Average Overweight (x) . | . . . . . . Largest Inventory Capacity 20 | 8 15 15 15 15 20 Average Capacity 15 | 7 14 15 15 15 19 Most Carried 20 | 8 15 15 15 15 20 Average Carried 14 | 4 12 14 14 14 18 Final Capacity 20 | 8 15 15 15 15 20 Final Carried 19 | 8 15 15 15 15 19 Class Distribution -------------------- 100% | Mutant Dominant Class ---------------- Mutant | -10/Materials Mutant | -10/Mines Mutant | -10/Subcaves Mutant | -7/Recycling Mutant | -7/Scraptown Resources | -11 -10 -10 -10 -7 -7 ----------- Run | Yrd Mat Min Sub Rec Scr Matter Collected 1295 | 305 215 264 155 129 227 Remotely . | . . . . . . Salvage Created 1270 | 85 438 325 136 187 99 Parts 88 | 12 37 18 8 2 11 Haulers Intercepted 2 | . 2 . . . . Recyclers Shooed 6 | . 2 2 . 2 . Parts Field Recycled . | . . . . . . Retrieved Matter . | . . . . . . Parts Self-Destructed 8 | . . . 8 . . Prevented . | . . . . . . Kills | -11 -10 -10 -10 -7 -7 ------- Run | Yrd Mat Min Sub Rec Scr Combat Hostiles Destroyed 23 | . 11 3 6 1 2 Guns 20 | . 11 2 5 1 1 Cannons 1 | . . . . . 1 AOE 1 | . . 1 . . . Classes Destroyed 12 | 2 6 . 1 1 2 Worker 5 | 2 2 1 . . . Tunneler 5 | 3 . 2 . . . Hauler 2 | . 2 . . . . Recycler 5 | . 1 2 . 2 . Operator 1 | . 1 . . . . Watcher 1 | . 1 . . . . Swarmer 13 | . 9 . 4 . . Grunt 6 | . 2 3 1 . . Sentry 1 | . . . . 1 . Subdweller 1 | . . . 1 . . Federalist 1 | . . . . . 1 Elite 1 | . . . . . 1 Best Kill Streak 4 | 4 3 2 3 2 2 Combat Bots Only 3 | . 3 2 3 1 2 Max Kills in Single Turn 2 | 1 2 1 1 1 1 Gunslinging 1 | . 1 . . . . Exploded 1 | . . 1 . . . Melee . | . . . . . . Uniques/NPCs Destroyed . | . . . . . . Combat | -11 -10 -10 -10 -7 -7 -------- Run | Yrd Mat Min Sub Rec Scr Hostile Shots Fired 177 | . 55 12 31 36 43 Missed 54 | . 18 4 7 9 16 Damage Taken 1416 | . 317 159 304 208 428 Core 270 | . 91 . 60 22 97 Absorbed by Shields . | . . . . . . Redirected to Shielding 14 | . . 14 . . . Core Remaining (%) 100 | 100 . . . . . Volleys Fired 93 | 8 41 19 15 7 3 Largest 2 | 2 2 2 2 2 2 Hottest 140 | 80 140 80 58 58 78 Shots Fired 184 | 16 80 37 30 14 7 Gun 174 | 16 76 35 30 14 3 Cannon 4 | . . . . . 4 Launcher 2 | . . 2 . . . Special 4 | . 4 . . . . Kinetic 56 | . . 5 30 14 7 Thermal 123 | 13 80 30 . . . Explosive 2 | . . 2 . . . Electromagnetic 3 | 3 . . . . . Robot Hit Streak 11 | 10 11 5 8 9 5 Robot Miss Streak 4 | 1 4 4 4 2 4 Penetration Max . | . . . . . . Secondary Targets 2 | . 2 . . . . Max Gunslinging Chain 1 | . 1 . . . . Shots Hit Robots 115 | 13 42 23 20 12 5 Core Hits 64 | 5 26 13 7 4 9 Critical Kills . | . . . . . . Critical Parts Destroyed 1 | . . . . 1 . Critical Strikes 1 | . . . . 1 . Smash 1 | . . . . 1 . Melee Attacks 34 | . . . 32 2 . Impact 34 | . . . 32 2 . Slashing . | . . . . . . Piercing . | . . . . . . Sneak Attacks 1 | . . . . 1 . Combat Hostiles . | . . . . . . Follow-up Attacks . | . . . . . . Damage Inflicted 1863 | 156 513 314 407 353 120 Guns 1515 | 156 489 265 329 242 34 Cannons 85 | . . . . . 85 Explosions 45 | . . 45 . . . Melee 189 | . . . 78 111 . Ramming 5 | . . 4 . . 1 Kinetic 727 | . . 37 329 242 119 Thermal 852 | 111 513 228 . . . Explosive 45 | . . 45 . . . Electromagnetic 45 | 45 . . . . . Impact 189 | . . . 78 111 . Slashing . | . . . . . . Piercing . | . . . . . . Highest Corruption 1 | . 1 1 1 1 1 Average Corruption 1 | . 1 1 1 1 1 Corruption Purged . | . . . . . . Corruption Blocked . | . . . . . . Effects 30 | . 2 9 9 2 8 Message Errors 7 | . . 2 1 . 4 Matter Fused 8 | . 1 3 3 1 . Heat Flow Errors 3 | . . . 1 . 2 Energy Discharges 3 | . . 1 1 . 1 Data Loss (minor) 6 | . 1 2 3 . . Misfires 2 | . . 1 . . 1 Alerts 1 | . . . . 1 . Overload Shots . | . . . . . . Overflow Damage 149 | . . . 38 111 . Projectiles . | . . . . . . Explosions . | . . . . . . Melee 149 | . . . 38 111 . Knockbacks 2 | . . . . 1 1 Impact 1 | . . . . 1 . Kinetic 1 | . . . . . 1 Secondary . | . . . . . . Self-Inflicted Damage 36 | . . 36 . . . Shots 1 | . . 1 . . . Rammed 2 | . . 1 . . 1 Targets Rammed 2 | . . 1 . . 1 Kicked . | . . . . . . Crushed . | . . . . . . Highest Temperature 207 | 56 138 189 124 159 207 Average Temperature 52 | 21 32 67 74 92 88 Received Heat Transfer 476 | . 60 69 75 66 206 Siege Activations . | . . . . . . Robots Corrupted 2 | . . . 1 1 . Combat Hostiles 1 | . . . 1 . . Parts Fried 1 | . . . . 1 . Impact Corruptions 6 | . . . 2 4 . Robots Melted . | . . . . . . Combat Hostiles . | . . . . . . Parts Melted 2 | . 1 1 . . . Heat Transferred 1925 | 250 1150 525 . . . Parts Sabotaged . | . . . . . . Parts Stolen . | . . . . . . Parts Stripped . | . . . . . . Power Chain Reactions . | . . . . . . Alert | -11 -10 -10 -10 -7 -7 ------- Run | Yrd Mat Min Sub Rec Scr Peak Influence 165 | 25 165 119 . 83 . Initial 54 | . 16 54 . 52 . Average 58 | 12 78 45 . 62 . Maximum Alert Level . | . . . . . . Low Security (%) 100 | 100 100 100 . 100 . Level 1 . | . . . . . . Level 2 . | . . . . . . Level 3 . | . . . . . . Level 4 . | . . . . . . Level 5 . | . . . . . . High Security . | . . . . . . Max Security . | . . . . . . Squads Dispatched 3 | . 2 1 . . . Investigation 1 | . . 1 . . . Extermination . | . . . . . . Reinforcement 2 | . 2 . . . . Assault . | . . . . . . Garrison . | . . . . . . Intercept . | . . . . . . Searches Triggered . | . . . . . . Construction Impeded . | . . . . . . Haulers Reinforced . | . . . . . . Active Scanning Responses . | . . . . . . Cargo Convoy Interrupts . | . . . . . . Stealth | -11 -10 -10 -10 -7 -7 --------- Run | Yrd Mat Min Sub Rec Scr Distress Signals 2 | . 2 . . . . Communications Jammed . | . . . . . . Distress Signals . | . . . . . . Times Spotted 46 | . 22 3 11 1 9 Peak Tracking Total 7 | . 3 2 6 1 7 Tactical Retreats 4 | . 2 . 2 . . Traps | -11 -10 -10 -10 -7 -7 ------- Run | Yrd Mat Min Sub Rec Scr Traps Triggered 1 | . 1 . . . . Indirectly . | . . . . . . Trap Hack Attempts . | . . . . . . Triggered . | . . . . . . Disarmed . | . . . . . . Reprogrammed . | . . . . . . Reused . | . . . . . . Traps Extracted . | . . . . . . Installed . | . . . . . . Triggered . | . . . . . . Machines | -11 -10 -10 -10 -7 -7 ---------- Run | Yrd Mat Min Sub Rec Scr Machines Disabled 2 | . . 1 1 . . Max in Single Turn 1 | . . 1 1 . . Machines Repaired . | . . . . . . Machines Dismantled 1 | . . . 1 . . Machines Sabotaged . | . . . . . . Overloaded Fab Kills . | . . . . . . Hacking | -11 -10 -10 -10 -7 -7 --------- Run | Yrd Mat Min Sub Rec Scr Machines Accessed 5 | . 2 1 2 . . Terminals 2 | . 2 . . . . Fabricators . | . . . . . . Repair Stations . | . . . . . . Recycling Units . | . . . . . . Scanalyzers . | . . . . . . Garrison Access . | . . . . . . Total Hacks 11 | . 6 1 4 . . Successful 8 | . 3 1 4 . . Failed 3 | . 3 . . . . Catastrophic . | . . . . . . Database Lockouts . | . . . . . . Manual 5 | . 5 . . . . Terminals 6 | . 6 . . . . Fabricators . | . . . . . . Repair Stations . | . . . . . . Recycling Units . | . . . . . . Scanalyzers . | . . . . . . Garrison Access . | . . . . . . Terminal Hacks 6 | . 1 1 4 . . Record 3 | . . . 3 . . Open Door 1 | . . 1 . . . Zone Layout 1 | . 1 . . . . Derelict Proto ID Bank 1 | . . . 1 . . Fabricator Hacks . | . . . . . . Repair Station Hacks . | . . . . . . Recycling Unit Hacks . | . . . . . . Scanalyzer . | . . . . . . Garrison Access Hacks . | . . . . . . Unauthorized Hacks 2 | . 2 . . . . Terminals 2 | . 2 . . . . Track 1 | . 1 . . . . Botnet 1 | . 1 . . . . Fabricators . | . . . . . . Repair Stations . | . . . . . . Recycling Units . | . . . . . . Scanalyzers . | . . . . . . Garrison Access . | . . . . . . Data Cores Recovered 1 | . 1 . . . . Used . | . . . . . . Hacking Detections 2 | . 2 . . . . Full Trace Events . | . . . . . . Feedback Events . | . . . . . . Feedback Blocked . | . . . . . . Robot Schematics Acquired . | . . . . . . Robots Built . | . . . . . . Authchips . | . . . . . . Time . | . . . . . . Total Robot Build Rating . | . . . . . . Part Schematics Acquired . | . . . . . . Parts Built . | . . . . . . Authchips . | . . . . . . Time . | . . . . . . Total Part Build Rating . | . . . . . . Parts Repaired . | . . . . . . Time . | . . . . . . Parts Recycled . | . . . . . . Recycled Matter . | . . . . . . Retrieved Matter . | . . . . . . Retrieved Components . | . . . . . . Parts Scanalyzed . | . . . . . . Part Schematics Acquired . | . . . . . . Parts Damaged . | . . . . . . Bothacking | -11 -10 -10 -10 -7 -7 ------------ Run | Yrd Mat Min Sub Rec Scr Used RIF Installer . | . . . . . . Robots Hacked . | . . . . . . Non-combat . | . . . . . . Combat . | . . . . . . Robot Hacks Applied . | . . . . . . Relay Couplers Released . | . . . . . . Fabnet Peak Effective % . | . . . . . . Robots Rewired . | . . . . . . Allies Hacked . | . . . . . . Hacks Repelled . | . . . . . . Allies | -11 -10 -10 -10 -7 -7 -------- Run | Yrd Mat Min Sub Rec Scr Total Allies . | . . . . . . Largest Group . | . . . . . . Highest-Rated Group . | . . . . . . Highest-Rated Ally . | . . . . . . Total Orders . | . . . . . . Ally Attacks . | . . . . . . Total Damage . | . . . . . . Kills . | . . . . . . Allies Corrupted . | . . . . . . Allies Melted . | . . . . . . Intel | -11 -10 -10 -10 -7 -7 ------- Run | Yrd Mat Min Sub Rec Scr Robot Analysis Total . | . . . . . . Derelict Logs Recovered 1 | . . 1 . . . Drone Launches . | . . . . . . Drone Recoveries . | . . . . . . Exploration | -11 -10 -10 -10 -7 -7 ------------- Run | Yrd Mat Min Sub Rec Scr Turns Passed 5197 | 201 1194 1304 1054 331 1113 Spaces Moved 2717 | 102 561 781 593 195 485 Core 15 | 15 . . . . . Treads 2702 | 87 561 781 593 195 485 Legs . | . . . . . . Wheels . | . . . . . . Hover . | . . . . . . Flight . | . . . . . . Fastest Speed 50 | 50 160 152 152 152 152 Average Speed 166 | 154 160 153 152 152 222 Slowest Speed 250 | 200 160 160 152 152 250 Overloaded Moves . | . . . . . . Propulsion Burnouts . | . . . . . . Robots Hopped . | . . . . . . Cave-ins Triggered . | . . . . . . Exploration Rate (%) 49 | 6 84 99 37 31 41 Regions Visited 5 Branch Regions 4 Pre-discovered Areas 2 | . . 1 1 . . Known Exits Taken . | . . . . . . Unknown Exits Taken 5 | 1 1 1 1 1 . Scrap Searched 8 | . . 1 2 . 5 Spaces Dug 19 | . 3 . 15 1 . Terrain Destroyed 45 | . 3 26 15 1 . Melee 16 | . . . 15 1 . Projectile 3 | . 3 . . . . AOE 26 | . . 26 . . . Terrain Rammed . | . . . . . . Walls Destroyed . | . . . . . . Machines Disabled . | . . . . . . Actions | -11 -10 -10 -10 -7 -7 --------- Run | Yrd Mat Min Sub Rec Scr Total 3159 | 125 770 854 674 214 522 Wait 191 | . 139 34 16 1 1 Move 2712 | 101 560 780 592 194 485 Hop . | . . . . . . Pick Up 46 | 7 11 6 3 3 16 Fast Attach 12 | 7 . 3 . 1 1 Attach 1 | . . . . . 1 Detach 1 | . . . . . 1 Swap 27 | 2 12 2 8 2 1 Drop 36 | . 7 9 4 4 12 Fire 93 | 8 41 19 15 7 3 Melee 34 | . . . 32 2 . Ram . | . . . . . . Kick . | . . . . . . Crush 2 | . . 1 . . 1 Escape Stasis . | . . . . . . Rewire . | . . . . . . Trap . | . . . . . . Miscellaneous 4 | . . . 4 . . Route ------- -11/Scrapyard -10/Materials (discovered 5 exits: [*Mat x3] / *Min x2) -10/Mines (discovered 4 exits: [*Mat x2] / [*Exi] / *Sub) -10/Subcaves (discovered 2 exits: [*Mat] / [*Rec]) -7/Recycling -7/Scraptown History --------- Turn | Location | Event 25 | -11/Scrapyard | Discovered new exit (range 13) 202 | -11/Scrapyard | Entered Materials 308 | -10/Materials | Build established: Mutant 573 | -10/Materials | Discovered new exit (range 10) 726 | -10/Materials | Discovered new exit (range 16) 880 | -10/Materials | Discovered new exit (range 8) 979 | -10/Materials | Discovered new exit (range 13) 1229 | -10/Materials | Discovered new exit (range 13) 1396 | -10/Materials | Entered Mines 1397 | -10/Mines | Learned location of Storage (-7) 1478 | -10/Mines | Learned 2 Materials zone layouts 1540 | -10/Mines | A weapon hastily lodged in a ceiling crevice suddenly fell to the ground 1694 | -10/Mines | Met a Derelict shopkeep closing up shop 2016 | -10/Mines | Discovered new exit (range 10) 2040 | -10/Mines | Discovered new exit (range 6) 2452 | -10/Mines | YI-UF0 nonchalantly dropped a Grenade Launcher on the ground 2483 | -10/Mines | Deemed a non-threat by the Exiles lab entrance 2483 | -10/Mines | Discovered new exit (range 5) 2691 | -10/Mines | Discovered new exit (range 6) 2700 | -10/Mines | Entered Subcaves 2784 | -10/Subcaves | Visited 4L-MR0's lab 2815 | -10/Subcaves | Found Meta Core 3108 | -10/Subcaves | A swath of the cavern ceiling suddenly collapsed 3183 | -10/Subcaves | Discovered new exit (range 4) 3201 | -10/Subcaves | Shifting Twisted Machinery released Sub. Machine Gun 3202 | -10/Subcaves | Shifting Twisted Machinery released Sub. Machine Gun 3345 | -10/Subcaves | Visited Clippyterm 3349 | -10/Subcaves | Learned location of Extension (-6) 3349 | -10/Subcaves | Learned Research security intel 3442 | -10/Subcaves | Shifting Twisted Machinery released Sub. Machine Gun 3449 | -10/Subcaves | Shifting Twisted Machinery released Spk. Treads 3676 | -10/Subcaves | Core integrity fell below 50% 3750 | -10/Subcaves | Discovered new exit (range 3) 3754 | -10/Subcaves | Entered Recycling 4048 | -7/Recycling | Scanned before Scraplab entrance 4070 | -7/Recycling | Entered Scraplab 4082 | -7/Recycling | Discovered new exit (range 3) 4085 | -7/Recycling | Entered Scraptown 4233 | -7/Scraptown | Heard Great Nut preacher, LISTEN AND RECITE! 4708 | -7/Scraptown | Visited Fellowship of the Rings 4728 | -7/Scraptown | Visited Assassins FH 4754 | -7/Scraptown | Visited Bundlers 4953 | -7/Scraptown | Visited Spacefarers 5060 | -7/Scraptown | Visited Red Mages 5177 | -7/Scraptown | Attacked by Scraptown defenders 5191 | -7/Scraptown | Core integrity fell below 20% 5198 | -7/Scraptown | Destroyed by F2-3NL(j) with Overtuned Pulse Rifle Last Messages --------------- something built in space than launched from the surface. 05004_ G,LT/0BN&7K>1,OVW4,5DZO 05060_ LOCAL NARROWCAST: Red Mages. Enter the matrix. 05116_ System corrupted: Heat flow error (+177). 05177_ System corrupted: FCS attempts to trigger Hvy. Flak Cannon. 05177_ System corrupted: Hvy. Flak Cannon misfires. 05177_ ANNOUNCEMENT: Intruder alert! Defend Scraptown! 05177_ 4J-6QO(g) knocked back. 05178_ 4J-6QO(g) destroyed. 05180_ Adv. Treads destroyed. 05180_ Critical hit (Burn: +50). 05190_ 7S-JGT(E) destroyed. 05192_ Critical hit (Burn: +50). 05195_ Ion Engine destroyed. 05196_ Slammed into F2-3NL(j). Map ----- +----------------------------------------------------+ | ?????????????????????????????????????????????????? | | ?????????????????????????????????????????????????? | | ?????????????????????????????????????????????????? | | ?????????????????????????????????????????????????? | | ?????????????????????????????????????????????????? | | ?????????????????????????????????????????????????? | | ?????????????????????????????????????????????????? | | ?????????????????????????????????????????????????? | | ?????????????????????????????????????????????????? | | ?????????????????????????????????????????????????? | | ??????????????????????? ???????????????????????? | | ??????????????????????# x???????????????????????? | | ??????????????????????" ???????????????????????? | | ??????????????????????" ???????????????????????? | | ??????????????????????" ???????????????????????? | | ?????????????????????? ???????????????????????? | | ????????????????????? "j #??????????????????????? | | ??????????????????????" #??????????????????????? | | ??????????????????????" #??????????????????????? | | ??????????????????????# #??????????????????????? | | ??????????????????????# #??????????????????????? | | ??????????????????##### #??????????????????????? | | ??????????????????? =#??????????????????????? | | ????????????????????? =%#??????????????????????? | | ?????????????????????## j[#??????????????????????? | | ?????????????????????#=[g@##?????????????????????? | | #####???###############%* ;######### ##??????????? | | """"#???""""""""" # !!= ??????? | | "#??####""" """ # ??????? | | "#??#! + """ # ??????? | | ! "#??#!!#"" " " # c ???????? | | "#??# !#" # ???????? | | !! "#??#! #" """ # ###############????????? | | ! "#??#!!#" "" # #??????????????????????? | | = "#??#!!#" """ # #??????????????????????? | | = "#??####" #p ########???#####???????? | | " ""#??#""" " p # """""### #???????? | | # ###??#"""" """"" # # " " # " " #???????? | | # ###??#""""""""""""# # # " "" #??? | | " ""#??############## # """ # " " #? | | "################# # """ # "" ## | | " "##"" "" """" " # # """ # " " ## | | " "##" "% " # # """ ## " " ## | | "## [=] # # """ ## " ## | | ""##""/ # ## " " ## | | """"##"%= # # " " ## | | """"##""! # # """""##"" ## | | """"?### ## # ################# | | ###??# ] # # ################# | | ######![ # / # | +----------------------------------------------------+ Best States ------------- Heat Dissipation 25 Energy Generation 10 Energy Capacity 250 Matter Stores 300 Matter Capacity 300 Sight Range 16 Terrain Scan Range 16 Terrain Scan Density 10 Armor Coverage 150 Resistance: EM 15 Weapon Shielding 33 Evasion (%) 40 Recoil Reduction 2 Item Schematics ----------------- None Robot Schematics ------------------ None Fabricated ------------ Nothing Alien Tech Used ----------------- None Achievements -------------- None Challenges ------------ None Game ------ Seed HugeShieldPit Manual? 0 Play Time 00:39:13 Cumulative 531.1 hours Start 2024.08.06 @ 09:45:35 End 2024.08.08 @ 19:27:06 Sessions 12 Manual Loads 0 Difficulty Rogue Special Mode None Game No. 145 Rogue 145 Adventurer 0 Explorer 0 Win Type - Total 37 Types 27/0/3/2/1/1/1/2/0 Lore% 36 Gallery% 79 Achievement% 86 Wizard Run 0 Options --------- Layout 2 ASCII 1 Keyboard 1 Movement Numpad Keybinds 0 Fullscreen 2 Font 24/Smallcaps Map View 50x44 Zoom Use 0% Tactical HUD 1 Map Filters NONE Filters NONE Steam 1 RUN: 3a1f43a6-a81b-43d7-b6e2-f180d1005710